bitfinex-derivatives/quotes_BNBF0:USTF0_20241231
["timestamp","ask_amount","ask_price","bid_price","bid_amount"]
[1735661162925,0.25901209,710.62,709.36,1.05056804]
[1735661163121,0.25901209,710.61,709.36,1.05056804]
[1735661163317,0.28140081,710.73,709.31,1.05056804]
[1735661163517,0.25907666,710.72,709.31,1.05056804]
[1735661164025,0.28140081,710.73,709.31,1.05056804]
[1735661164317,0.25904894,710.72,709.31,1.05056804]
[1735661164524,0.25904894,710.72,709.17,1.05056804]
[1735661164724,0.25904894,710.72,709.17,1.33258786]
[1735661165123,0.28140081,710.73,709.17,1.33258786]
[1735661165324,0.28140081,710.73,709.19,1.05056804]
[1735661166518,0.28140081,710.73,709.26,1.05056804]
[1735661167319,1.47041736,710.72,709.26,1.05056804]
[1735661167724,0.28140873,710.71,709.26,1.05056804]
[1735661168926,0.28140873,710.71,709.28,1.05056804]
[1735661170126,0.28140873,710.71,709.24,1.05056804]
[1735661171229,0.28140873,710.71,709.17,0.28201982]
[1735661174533,0.28140873,710.71,709.21,1.05056804]
[1735661175828,0.28140873,710.71,709.25,1.05056804]
[1735661177130,0.28140873,710.71,709.44,1.05056804]
[1735661178331,0.28140873,710.71,709.56,1.05056804]
[1735661179732,0.28140873,710.71,709.65,1.05056804]
[1735661180232,0.25901746,710.7,709.65,1.05056804]
[1735661180437,0.28140873,710.71,709.65,1.05056804]
[1735661180732,0.28140873,710.71,709.66,1.05056804]
[1735661181837,0.28140873,710.71,709.58,1.05056804]
[1735661183242,0.25903648,710.7,709.6,1.05056804]
[1735661184142,0.25904258,710.69,709.55,1.05056804]
[1735661184437,0.25904258,710.68,709.55,1.05056804]
[1735661184737,0.25904258,710.67,709.55,1.05056804]
[1735661184942,0.54047111,710.66,709.55,1.05056804]
[1735661185237,0.54047111,710.66,709.32,1.05056804]
[1735661185238,0.25903498,710.65,709.54,1.05056804]
[1735661185938,1.47038629,710.64,709.54,1.05056804]
[1735661186136,1.47038629,710.64,709.67,1.05056804]
[1735661187236,1.47038629,710.64,709.75,1.05056804]
[1735661188643,1.47038629,710.64,709.76,1.05056804]
[1735661190644,1.47038629,710.64,709.78,1.05056804]
[1735661192046,1.47038629,710.64,709.23,2.14490974]
[1735661192047,1.47038629,710.64,709.77,1.05056804]
[1735661194249,1.47038629,710.64,709.75,1.05056804]
[1735661195451,1.47038629,710.64,709.7,1.05056804]
[1735661196453,1.47038629,710.64,709.72,1.05056804]
[1735661197448,1.47038629,710.64,709.75,1.05056804]
[1735661198650,1.47038629,710.64,709.74,1.05056804]
[1735661199752,1.47038629,710.64,709.73,1.05056804]
[1735661200755,1.47038629,710.64,709.7,1.05056804]
[1735661202056,1.47038629,710.64,709.68,1.05056804]
[1735661202854,1.47038629,710.64,709.69,1.05056804]
[1735661203951,1.47038629,710.64,709.67,1.05056804]
[1735661205559,1.47038629,710.64,709.61,1.05056804]
[1735661206553,1.47038629,710.64,709.63,1.05056804]
[1735661207356,0.25905114,710.63,709.63,1.05056804]
[1735661207754,0.25905308,710.62,709.63,1.05056804]
[1735661208061,0.25905308,710.61,709.63,1.05056804]
[1735661208358,0.25905308,710.6,709.63,1.05056804]
[1735661208558,0.25905308,710.59,709.63,1.05056804]
[1735661208754,0.25905308,710.58,709.63,1.05056804]
[1735661208957,0.25905308,710.57,709.63,1.05056804]
[1735661209157,0.25905308,710.56,709.63,1.05056804]
[1735661209359,0.25905308,710.55,709.63,1.05056804]
[1735661209561,1.47041218,710.55,709.66,1.05056804]
[1735661210256,0.25906393,710.54,709.66,1.05056804]
[1735661210655,1.47041218,710.55,709.18,0.703598]
[1735661210656,1.47041218,710.55,709.65,1.05056804]
[1735661210859,0.2590645,710.54,709.65,1.05056804]
[1735661211056,1.47041218,710.55,709.65,1.05056804]
[1735661211664,1.47041218,710.55,709.64,1.05056804]
[1735661212055,0.25906339,710.54,709.64,1.05056804]
[1735661212562,1.47041218,710.55,709.64,1.05056804]
[1735661213964,1.47041218,710.55,709.59,1.05056804]
[1735661215268,1.47041218,710.55,709.43,1.05056804]
[1735661216165,1.47041218,710.55,709.35,1.05056804]
[1735661216967,1.47041218,710.55,709.49,1.05056804]
[1735661218072,1.47041218,710.55,709.48,1.05056804]
[1735661219271,1.47041218,710.55,709.51,1.05056804]
[1735661220573,1.47041218,710.55,709.52,1.05056804]
[1735661221669,1.47041218,710.55,709.62,1.05056804]
[1735661222479,1.47041218,710.55,709.66,1.05056804]
[1735661224071,1.47041218,710.55,709.64,1.05056804]
[1735661225175,1.47041218,710.55,709.75,1.05056804]
[1735661227276,0.28142853,710.66,709.75,1.05056804]
[1735661227478,1.47017923,710.64,709.75,1.05056804]
[1735661228179,0.28142853,710.66,709.75,1.05056804]
[1735661228475,0.28142853,710.66,709.79,1.05056804]
[1735661229275,0.28142853,710.66,709.81,1.05056804]
[1735661230180,0.28142853,710.66,709.18,0.70486734]
[1735661230181,0.28142853,710.66,709.77,1.05056804]
[1735661231476,0.28142853,710.66,709.18,0.70486734]
[1735661231477,0.28142853,710.66,709.76,1.05056804]
[1735661232575,0.28142853,710.66,709.18,0.70486734]
[1735661232576,0.28142853,710.66,709.74,1.05056804]
[1735661233681,0.28142853,710.66,709.64,1.05056804]
[1735661235086,0.28142853,710.66,709.73,1.05056804]
[1735661236184,0.28142853,710.66,709.71,1.05056804]
[1735661237484,0.28142853,710.66,709.67,1.05056804]
[1735661238682,1.47012747,710.65,709.5,1.05056804]
[1735661239385,1.47012747,710.65,709.18,0.70486734]
[1735661239386,1.47012747,710.65,709.52,1.05056804]
[1735661240688,1.47012747,710.65,709.53,1.05056804]
[1735661241790,1.47012747,710.65,709.49,1.05056804]
[1735661242881,0.28142853,710.66,709.49,1.05056804]
[1735661243083,0.28142853,710.66,709.42,1.05056804]
[1735661243888,0.28142853,710.66,709.43,0.28191646]
[1735661244188,0.28142853,710.66,709.47,1.05056804]
[1735661244989,0.28142853,710.66,709.68,1.05056804]
[1735661246690,0.28142853,710.66,709.71,1.05056804]
[1735661247887,0.28142853,710.66,709.62,1.05056804]
[1735661248890,0.28142853,710.66,709.57,1.05056804]
[1735661250094,0.28142853,710.66,709.66,1.05056804]
[1735661250794,0.28142853,710.66,709.63,1.05056804]
[1735661251890,0.28142853,710.66,709.64,1.05056804]
[1735661253093,0.28142853,710.66,709.66,1.05056804]
[1735661255796,0.28142853,710.66,709.71,1.05056804]
[1735661256596,0.28142853,710.66,709.7,1.05056804]
[1735661257397,0.28142853,710.66,709.73,1.05056804]
[1735661258291,0.28142853,710.66,709.75,1.05056804]
[1735661259092,0.28142853,710.66,709.76,1.05056804]
[1735661260498,0.28142853,710.66,709.43,0.28191646]
[1735661260499,0.28142853,710.66,709.69,1.05056804]
[1735661262001,0.28142853,710.66,709.65,1.05056804]
[1735661263201,0.28142853,710.66,709.7,1.05056804]
[1735661264295,0.28142853,710.66,709.72,1.05056804]
[1735661266396,0.28142853,710.66,709.71,1.05056804]
[1735661267602,0.28142853,710.66,709.75,1.05056804]
[1735661268801,0.28142853,710.66,709.76,1.05056804]
[1735661269903,0.28142853,710.66,709.95,1.05056804]
[1735661271404,0.28142853,710.66,710.02,1.05056804]
[1735661273403,0.28142853,710.66,710.0,1.05056804]
[1735661273804,1.04358558,711.11,710.0,1.05056804]
[1735661274004,1.46969286,710.92,710.0,1.05056804]
[1735661274203,0.28125439,711.1,710.0,1.05056804]
[1735661274502,1.46962045,710.91,710.0,1.05056804]
[1735661274702,1.46962045,710.91,709.4,2.14490974]
[1735661274703,0.28125439,711.1,710.04,1.05056804]
[1735661274905,0.25889262,711.09,710.04,1.05056804]
[1735661275407,0.28125439,711.1,710.04,1.05056804]
[1735661275807,0.28125439,711.1,709.83,1.05056804]
[1735661275808,0.28125439,711.1,710.05,1.05056804]
[1735661276007,1.46941361,711.09,710.05,1.05056804]
[1735661277005,1.46941361,711.09,709.44,2.84969113]
[1735661277006,1.46941361,711.09,709.82,1.05056804]
[1735661277803,1.46941361,711.09,710.21,1.05056804]
[1735661279112,1.46941361,711.09,710.18,1.05056804]
[1735661280411,1.46941361,711.09,709.53,2.14490974]
[1735661280412,0.28125439,711.1,710.19,1.05056804]
[1735661281411,0.28125439,711.1,710.26,1.05056804]
[1735661282413,0.28125439,711.1,710.2,1.05056804]
[1735661283015,0.28125439,711.1,710.15,1.05056804]
[1735661283615,1.46893291,711.28,710.15,1.05056804]
[1735661284521,1.46893291,711.28,710.13,1.05056804]
[1735661285421,1.46893291,711.28,709.69,1.26068164]
[1735661285422,1.46893291,711.28,710.12,1.05056804]
[1735661286819,1.46893291,711.28,710.07,1.05056804]
[1735661287921,0.25881981,711.27,710.07,1.05056804]
[1735661288427,0.25881981,711.27,709.94,1.05056804]
[1735661289325,0.25881981,711.27,709.85,1.05056804]
[1735661290320,0.25881279,711.26,709.85,1.05056804]
[1735661290521,0.28118717,711.27,709.86,1.05056804]
[1735661291125,0.25881281,711.26,709.86,1.05056804]
[1735661291423,0.28118717,711.27,709.86,1.05056804]
[1735661291424,0.25879524,711.25,709.86,1.05056804]
[1735661291623,0.25879524,711.24,709.91,1.05056804]
[1735661291931,0.28118717,711.27,709.91,1.05056804]
[1735661292123,0.25879239,711.26,709.91,1.05056804]
[1735661292522,0.25879239,711.26,709.97,1.05056804]
[1735661292923,0.25880352,711.25,709.97,1.05056804]
[1735661293228,0.25880352,711.24,709.97,1.05056804]
[1735661293429,0.25880352,711.23,709.97,1.05056804]
[1735661293630,0.28118717,711.27,709.97,1.05056804]
[1735661293830,0.25879585,711.26,709.93,1.05056804]
[1735661294829,0.25879585,711.26,709.95,1.05056804]
[1735661296234,0.25879585,711.26,709.98,1.05056804]
[1735661297027,0.28118717,711.27,709.98,1.05056804]
[1735661297227,0.28118717,711.27,710.03,1.05056804]
[1735661298535,0.28118717,711.27,709.95,1.05056804]
[1735661299734,0.28118717,711.27,709.96,1.05056804]
[1735661300835,0.28118717,711.27,709.99,1.05056804]
[1735661301931,0.28118717,711.27,710.01,1.05056804]
[1735661303236,0.28118717,711.27,710.11,1.05056804]
[1735661304936,0.28118717,711.27,710.14,1.05056804]
[1735661305735,0.28118717,711.27,710.07,1.05056804]
[1735661306735,0.28118717,711.27,710.04,1.05056804]
[1735661308032,0.28118717,711.27,710.09,1.05056804]
[1735661309033,0.28118717,711.27,710.17,1.05056804]
[1735661310137,0.28118717,711.27,710.19,1.05056804]
[1735661311638,0.28118717,711.27,710.26,1.05056804]
[1735661312642,0.28118717,711.27,710.44,1.05056804]
[1735661313738,0.28118717,711.27,709.72,2.14490974]
[1735661313739,0.28118717,711.27,710.46,1.05056804]
[1735661314639,0.28118717,711.27,710.43,1.05056804]
[1735661315840,0.28118717,711.27,710.37,1.05056804]
[1735661316743,0.28118717,711.27,710.35,1.05056804]
[1735661319243,0.28118717,711.27,710.39,1.05056804]
[1735661320349,0.28118717,711.27,710.36,1.05056804]
[1735661321549,0.28118717,711.27,710.37,1.05056804]
[1735661322852,0.28118717,711.27,710.4,1.05056804]
[1735661323546,1.04358558,711.78,710.4,1.05056804]
[1735661323752,1.46835959,711.62,710.43,1.05056804]
[1735661323949,1.04358558,711.83,710.43,1.05056804]
[1735661324148,0.25862896,711.82,710.43,1.05056804]
[1735661324348,1.46825118,711.62,710.43,1.05056804]
[1735661324545,1.04358558,711.83,710.43,1.05056804]
[1735661324851,0.25862192,711.82,710.43,1.05056804]
[1735661325051,0.25862192,711.82,710.61,1.05056804]
[1735661325247,0.25862192,711.81,710.61,1.05056804]
[1735661325453,1.04358558,712.06,710.61,1.05056804]
[1735661325749,1.46793119,711.8,710.61,1.05056804]
[1735661326053,0.25862389,711.79,710.59,1.05056804]
[1735661326254,0.25862389,711.78,710.59,1.05056804]
[1735661326654,1.46806536,711.79,710.59,1.05056804]
[1735661327056,1.46806536,711.79,710.56,1.05056804]
[1735661327647,0.25862988,711.78,710.56,1.05056804]
[1735661327951,1.46806536,711.79,710.56,1.05056804]
[1735661328456,1.46806536,711.79,709.91,2.14490974]
[1735661328457,1.46806536,711.79,710.57,1.05056804]
[1735661329555,1.46806536,711.79,710.59,1.05056804]
[1735661330755,1.46806536,711.79,710.6,1.05056804]
[1735661332258,1.46806536,711.79,710.57,1.05056804]
[1735661333456,1.46806536,711.79,710.64,1.05056804]
[1735661334751,1.46806536,711.79,710.63,1.05056804]
[1735661335756,1.46806536,711.79,710.66,1.05056804]
[1735661336657,1.46782799,711.83,710.66,1.05056804]
[1735661336861,1.46782799,711.83,710.64,1.05056804]
[1735661337760,1.46782799,711.83,710.7,1.05056804]
[1735661339955,1.46782799,711.83,710.6,1.05056804]
[1735661341156,1.46782799,711.83,704.38,7.56904361]
[1735661341157,1.46782799,711.83,710.55,1.05056804]
[1735661342255,1.46782799,711.83,710.35,3.75630033]
[1735661342256,1.46782799,711.83,710.57,1.05056804]
[1735661343063,1.46782799,711.83,710.62,1.05056804]
[1735661344165,1.46782799,711.83,710.54,1.05056804]
[1735661344361,0.25859113,711.82,710.54,1.05056804]
[1735661344665,0.25862371,711.81,710.54,1.05056804]
[1735661344963,0.53960151,711.8,710.54,1.05056804]
[1735661345161,0.25862371,711.79,710.54,1.05056804]
[1735661345664,0.2809778,711.8,710.42,1.05056804]
[1735661346559,0.2809778,711.8,710.22,1.05056804]
[1735661347863,0.2809778,711.8,710.23,1.05056804]
[1735661348055,0.2809778,711.8,710.24,0.28159495]
[1735661350064,0.2809778,711.8,710.24,1.33216299]
[1735661351266,0.2809778,711.8,710.25,1.05056804]
[1735661351664,0.2809778,711.8,710.26,0.28158702]
[1735661352665,0.2809778,711.8,710.3,1.05056804]
[1735661353661,0.2809778,711.8,710.37,1.05056804]
[1735661355062,0.2809778,711.8,710.26,0.28158702]
[1735661355063,0.2809778,711.8,710.43,1.05056804]
[1735661355665,0.25862681,711.79,710.43,1.05056804]
[1735661355864,0.2809778,711.8,710.43,1.05056804]
[1735661356067,0.25862703,711.79,710.43,1.05056804]
[1735661356366,0.2809778,711.8,710.57,1.05056804]
[1735661356568,0.25862161,711.79,710.57,1.05056804]
[1735661357167,0.2809778,711.8,710.57,1.05056804]
[1735661357369,0.25862304,711.79,710.57,1.05056804]
[1735661357562,0.25862304,711.79,710.59,1.05056804]
[1735661357764,0.2809778,711.8,710.59,1.05056804]
[1735661357964,0.25862585,711.79,710.59,1.05056804]
[1735661358162,0.2809778,711.8,710.59,1.05056804]
[1735661358369,0.25862602,711.79,710.59,1.05056804]
[1735661359170,0.25862602,711.79,710.63,1.05056804]
[1735661359769,0.2809778,711.8,710.63,1.05056804]
[1735661360869,0.2809778,711.8,710.64,1.05056804]
[1735661361968,0.2809778,711.8,710.85,1.05056804]
[1735661362971,0.2809778,711.8,710.88,1.05056804]
[1735661364169,0.2809778,711.8,710.85,1.05056804]
[1735661365369,0.2809778,711.8,710.32,2.14490974]
[1735661365370,0.2809778,711.8,710.69,1.05056804]
[1735661366369,0.2809778,711.8,710.67,1.05056804]
[1735661369772,0.2809778,711.8,710.8,1.05056804]
[1735661370973,0.2809778,711.8,710.83,1.05056804]
[1735661371972,0.2809778,711.8,710.86,1.05056804]
[1735661372966,0.2809778,711.8,710.85,1.05056804]
[1735661374273,0.2809778,711.8,710.91,1.05056804]
[1735661375675,0.2809778,711.8,711.01,1.05056804]
[1735661377475,1.46760618,711.9,711.01,1.05056804]
[1735661377677,1.46760618,711.9,710.98,1.05056804]
[1735661380481,1.46760618,711.9,710.73,1.05056804]
[1735661381774,1.46760618,711.9,710.75,1.05056804]
[1735661382782,1.46760618,711.9,710.66,1.05056804]
[1735661383782,1.46760618,711.9,709.88,2.14490974]
[1735661383783,1.46760618,711.9,710.69,1.05056804]
[1735661386077,1.46760618,711.9,710.68,1.05056804]
[1735661386277,0.25857736,711.89,710.68,1.05056804]
[1735661386476,1.46760618,711.9,710.68,1.05056804]
[1735661386683,0.25857732,711.89,710.68,1.05056804]
[1735661387184,0.25857732,711.89,710.31,2.76522421]
[1735661387185,0.25857732,711.89,710.77,1.05056804]
[1735661388184,0.25857732,711.89,710.49,1.05056804]
[1735661388185,0.25857732,711.89,710.82,1.05056804]
[1735661388384,1.46760618,711.9,710.82,1.05056804]
[1735661388787,0.25857878,711.89,710.82,1.05056804]
[1735661389188,1.46760618,711.9,710.79,1.05056804]
[1735661390383,0.25858588,711.89,710.79,1.05056804]
[1735661390588,0.25858588,711.89,710.82,1.05056804]
[1735661390983,1.46760618,711.9,710.82,1.05056804]
[1735661392586,1.46760618,711.9,710.85,1.05056804]
[1735661392984,0.25857969,711.89,710.85,1.05056804]
[1735661393184,1.46760618,711.9,710.85,1.05056804]
[1735661393585,1.46760618,711.9,710.84,1.05056804]
[1735661393984,0.25860016,711.89,710.84,1.05056804]
[1735661394491,1.46760618,711.9,710.27,0.70144431]
[1735661394492,0.25861499,711.88,710.74,1.05056804]
[1735661394791,0.25861499,711.87,710.74,1.05056804]
[1735661394991,1.46760618,711.9,710.74,1.05056804]
[1735661395192,0.25859713,711.89,710.74,1.05056804]
[1735661395891,0.28094622,711.88,710.74,1.05056804]
[1735661396393,0.25860114,711.87,710.74,1.05056804]
[1735661396593,0.25860114,711.87,710.27,0.70144431]
[1735661396594,0.25860114,711.87,710.73,1.05056804]
[1735661397792,0.25860114,711.87,710.74,1.05056804]
[1735661398188,0.28095412,711.86,710.74,1.05056804]
[1735661398892,0.28095412,711.86,710.7,1.05056804]
[1735661399290,0.25860752,711.85,710.7,1.05056804]
[1735661399893,0.2586181,711.84,710.71,1.05056804]
[1735661400093,0.28095412,711.86,710.71,1.05056804]
[1735661400487,0.25860984,711.85,710.71,1.05056804]
[1735661400690,0.28095412,711.86,710.71,1.05056804]
[1735661401291,0.28095412,711.86,710.68,1.05056804]
[1735661402194,0.28095412,711.86,710.69,1.05056804]
[1735661403195,0.28095412,711.86,710.7,1.05056804]
[1735661405192,0.28095412,711.86,710.67,1.05056804]
[1735661406498,0.28095412,711.86,710.65,1.05056804]
[1735661408797,0.28095412,711.86,710.27,0.70144431]
[1735661408798,0.28095412,711.86,710.63,1.05056804]
[1735661409997,0.28095412,711.86,710.68,1.05056804]
[1735661411297,0.28095412,711.86,710.27,0.70144431]
[1735661411298,0.28095412,711.86,710.7,1.05056804]
[1735661413899,0.28095412,711.86,710.77,1.05056804]
[1735661415500,0.28095412,711.86,710.75,1.05056804]
[1735661416304,0.28095412,711.86,710.8,1.05056804]
[1735661417102,0.25859113,711.85,710.8,1.05056804]
[1735661417303,0.25859113,711.85,710.89,1.05056804]
[1735661418606,0.25859113,711.85,710.96,1.05056804]
[1735661418803,0.25858898,711.84,710.96,1.05056804]
[1735661419005,0.25858898,711.83,710.96,1.05056804]
[1735661419205,0.25858898,711.82,710.96,1.05056804]
[1735661419407,0.25858898,711.81,710.97,1.05056804]
[1735661419706,1.4678022,711.81,710.97,1.05056804]
[1735661419900,0.25859505,711.8,710.97,1.05056804]
[1735661420307,1.4678022,711.81,710.97,1.05056804]
[1735661420507,1.4678022,711.81,710.44,2.14490974]
[1735661420508,1.4678022,711.81,710.98,1.05056804]
[1735661421403,1.4678022,711.81,710.89,1.05056804]
[1735661422411,0.25861585,711.8,710.89,1.05056804]
[1735661422607,1.4678022,711.81,710.89,1.05056804]
[1735661422909,0.25861545,711.8,710.89,1.05056804]
[1735661423109,1.4678022,711.81,710.89,1.05056804]
[1735661423505,0.25861562,711.8,710.89,1.05056804]
[1735661423909,0.25861295,711.79,710.89,1.05056804]
[1735661424108,1.4678022,711.81,710.89,1.05056804]
[1735661424310,0.25861254,711.8,710.89,1.05056804]
[1735661424614,1.4678022,711.81,710.89,1.05056804]
[1735661426012,1.4678022,711.81,710.84,1.05056804]
[1735661427312,1.4678022,711.81,710.85,1.05056804]
[1735661428412,1.4678022,711.81,710.89,1.05056804]
[1735661429413,1.4678022,711.81,710.88,1.05056804]
[1735661430516,0.25861941,711.8,710.89,1.05056804]
[1735661431416,0.28098175,711.79,710.89,1.05056804]
[1735661432010,0.25865219,711.78,710.89,1.05056804]
[1735661432208,0.28098964,711.77,710.89,1.05056804]
[1735661432413,0.25865907,711.76,710.89,1.05056804]
[1735661432611,0.28099754,711.75,710.89,1.05056804]
[1735661433018,0.28099754,711.75,710.75,1.05056804]
[1735661433218,0.25866059,711.74,710.75,1.05056804]
[1735661433417,0.28100543,711.73,710.75,1.05056804]
[1735661433719,0.25866059,711.72,710.75,1.05056804]
[1735661433913,0.28101333,711.71,710.75,1.05056804]
[1735661434321,0.28101333,711.71,710.68,1.05056804]
[1735661435618,0.28101333,711.71,710.58,1.05056804]
[1735661436823,0.28101333,711.71,710.57,1.05056804]
[1735661439119,0.28101333,711.71,710.54,1.05056804]
[1735661439821,0.28101333,711.71,710.55,1.05056804]
[1735661441215,0.28101333,711.71,710.54,1.05056804]
[1735661442323,0.28101333,711.71,710.52,1.05056804]
[1735661442517,0.25868433,711.7,710.52,1.05056804]
[1735661442721,0.28101333,711.71,710.52,1.05056804]
[1735661443023,0.25867907,711.7,710.52,1.05056804]
[1735661443221,0.28102123,711.69,710.52,1.05056804]
[1735661443418,0.28102123,711.69,710.5,1.05056804]
[1735661444020,0.25868877,711.68,710.5,1.05056804]
[1735661444424,0.28102912,711.67,710.5,1.05056804]
[1735661444726,0.25868691,711.66,710.49,1.05056804]
[1735661444922,0.5397426,711.65,710.49,1.05056804]
[1735661445125,0.53974655,711.64,710.49,1.05056804]
[1735661445323,0.5397505,711.63,710.49,1.05056804]
[1735661445522,0.53975445,711.62,710.49,1.05056804]
[1735661445722,0.5397584,711.61,710.49,1.05056804]
[1735661445922,0.53976235,711.6,710.49,1.05056804]
[1735661446120,0.53976235,711.6,709.79,2.14490974]
[1735661446121,0.25870558,711.59,710.39,1.05056804]
[1735661446619,0.28106467,711.58,710.39,1.05056804]
[1735661446824,0.25870558,711.57,710.39,1.05056804]
[1735661447025,0.28107257,711.56,710.29,1.05056804]
[1735661447221,0.25873283,711.55,710.29,1.05056804]
[1735661447427,0.28108047,711.54,710.29,1.05056804]
[1735661448224,0.28108047,711.54,710.31,1.05056804]
[1735661449029,0.28108047,711.54,710.29,1.05056804]
[1735661449230,0.25874621,711.53,710.29,1.05056804]
[1735661450129,0.25874621,711.53,710.28,1.05056804]
[1735661451726,0.25874621,711.53,710.27,1.05056804]
[1735661452529,0.25871743,711.52,710.27,1.05056804]
[1735661452729,0.25871743,711.51,710.27,1.05056804]
[1735661452930,0.25871743,711.5,710.38,1.05056804]
[1735661453125,0.25871743,711.49,710.38,1.05056804]
[1735661453324,0.28108047,711.54,710.38,1.05056804]
[1735661453529,0.25870793,711.53,710.38,1.05056804]
[1735661454228,0.25870793,711.53,710.11,2.71885827]
[1735661454229,0.25870793,711.53,710.42,1.05056804]
[1735661455528,0.25870793,711.53,710.43,1.05056804]
[1735661456034,1.46849384,711.52,710.43,1.05056804]
[1735661457333,1.46849384,711.52,710.44,1.05056804]
[1735661457834,0.25871161,711.51,710.44,1.05056804]
[1735661459335,1.46849384,711.52,710.44,1.05056804]
[1735661459535,0.258706,711.51,710.44,1.05056804]
[1735661459736,0.258706,711.51,710.43,1.05056804]
[1735661459937,1.46849384,711.52,710.43,1.05056804]
[1735661460628,1.46849384,711.52,710.47,1.05056804]
[1735661461036,1.46849384,711.52,702.21,5.03785346]
[1735661461233,1.46849384,711.52,708.71,2.7650326]
[1735661461432,1.46849384,711.52,708.72,5.48297137]
[1735661461635,1.46849384,711.52,708.73,2.7650326]
[1735661461834,1.46849384,711.52,708.73,5.48297137]
[1735661462039,1.46849384,711.52,708.74,5.48297137]
[1735661462239,1.46849384,711.52,708.75,5.48297137]
[1735661462441,1.46849384,711.52,710.4,1.0511401]
[1735661463435,1.46849384,711.52,710.42,1.0511401]
[1735661466243,1.46849384,711.52,710.45,1.0511401]
[1735661467140,1.46849384,711.52,710.47,1.0511401]
[1735661468345,1.46849384,711.52,710.5,1.0511401]
[1735661469546,1.46849384,711.52,710.48,1.0511401]
[1735661471645,1.46849384,711.52,710.56,1.0511401]
[1735661474453,1.46849384,711.52,710.6,1.0511401]
[1735661475555,1.46849384,711.52,710.58,1.0511401]
[1735661476754,1.46849384,711.52,710.6,1.0511401]
[1735661477849,1.46849384,711.52,710.62,1.0511401]
[1735661479148,1.46849384,711.52,710.69,1.0511401]
[1735661479954,0.28108047,711.54,710.69,1.0511401]
[1735661481358,0.28108047,711.54,710.64,1.0511401]
[1735661482353,0.28108047,711.54,710.63,1.0511401]
[1735661484157,0.28108047,711.54,710.27,0.70402985]
[1735661484158,0.28108047,711.54,710.59,1.0511401]
[1735661486456,0.28108047,711.54,710.65,1.0511401]
[1735661487662,0.28108047,711.54,710.59,1.0511401]
[1735661488364,0.28108047,711.54,710.63,1.0511401]
[1735661489666,0.28108047,711.54,710.6,1.0511401]
[1735661490863,0.28108047,711.54,710.64,1.0511401]
[1735661492065,0.28108047,711.54,710.4,1.0511401]
[1735661492066,0.28108047,711.54,710.65,1.0511401]
[1735661493568,1.46804988,711.68,710.65,1.0511401]
[1735661493963,1.04498882,712.03,710.65,1.0511401]
[1735661494164,1.46798279,711.82,710.65,1.0511401]
[1735661494364,0.53948035,712.02,710.65,1.0511401]
[1735661494365,0.28089098,712.02,710.65,1.0511401]
[1735661494562,1.46791055,711.84,710.65,1.0511401]
[1735661494768,1.46791055,711.84,710.7,1.0511401]
[1735661495063,0.28089098,712.02,710.7,1.0511401]
[1735661495466,0.25857795,712.01,710.7,1.0511401]
[1735661495871,0.28089098,712.02,710.77,1.0511401]
[1735661496168,1.46769902,712.0,710.77,1.0511401]
[1735661496770,0.25855969,711.99,710.77,1.0511401]
[1735661497068,0.25855969,711.99,710.75,1.0511401]
[1735661498068,0.25855969,711.99,710.82,1.0511401]
[1735661498470,0.25855011,711.98,710.82,1.0511401]
[1735661498669,1.46769902,712.0,710.82,1.0511401]
[1735661499170,1.46769902,712.0,710.84,1.0511401]
[1735661499563,0.25854007,711.99,710.84,1.0511401]
[1735661500171,0.25854007,711.99,710.86,1.0511401]
[1735661500564,1.46769902,712.0,710.86,1.0511401]
[1735661500873,0.25853435,711.99,710.86,1.0511401]
[1735661501068,1.46769902,712.0,710.86,1.0511401]
[1735661501370,0.25853282,711.99,710.85,1.0511401]
[1735661501570,1.46769902,712.0,710.85,1.0511401]
[1735661501772,0.25853674,711.99,710.85,1.0511401]
[1735661502765,0.25853674,711.99,710.8,1.0511401]
[1735661503672,1.46769902,712.0,710.8,1.0511401]
[1735661503673,0.25855169,711.98,710.8,1.0511401]
[1735661503871,0.25855169,711.97,710.8,1.0511401]
[1735661504065,1.46769902,712.0,710.8,1.0511401]
[1735661504066,0.25855169,711.96,710.8,1.0511401]
[1735661504268,0.25855169,711.95,710.79,1.0511401]
[1735661504467,0.25855169,711.94,710.79,1.0511401]
[1735661504774,1.46769902,712.0,710.79,1.0511401]
[1735661504975,0.25854849,711.99,710.79,1.0511401]
[1735661505172,1.46769902,712.0,710.79,1.0511401]
[1735661505875,1.46769902,712.0,710.74,1.0511401]
[1735661506567,0.25854136,711.99,710.74,1.0511401]
[1735661506971,0.25854136,711.99,710.78,1.0511401]
[1735661507168,1.46769902,712.0,710.78,1.0511401]
[1735661507970,0.2585398,711.99,710.78,1.0511401]
[1735661508374,0.2585398,711.99,710.77,1.0511401]
[1735661509277,0.2585398,711.99,710.79,1.0511401]
[1735661509669,1.46769902,712.0,710.79,1.0511401]
[1735661510476,1.46769902,712.0,710.58,1.0511401]
[1735661510477,1.46769902,712.0,710.76,1.0511401]
[1735661512969,1.46769902,712.0,710.48,0.70360281]
[1735661512970,1.46769902,712.0,710.78,1.0511401]
[1735661514774,1.46769902,712.0,710.71,1.0511401]
[1735661515679,1.46769902,712.0,710.73,1.0511401]
[1735661517776,1.46769902,712.0,710.75,1.0511401]
[1735661518983,1.46769902,712.0,710.74,1.0511401]
[1735661520581,1.46769902,712.0,710.79,1.0511401]